bitfinex/quotes_ETHUSD_20240707
["timestamp","ask_amount","ask_price","bid_price","bid_amount"]
[1720334409319,0.11932659,3042.7,3042.6,2.3067]
[1720334409824,1.72627705,3042.9,3042.6,2.3067]
[1720334409825,0.11932659,3042.8,3042.6,2.3067]
[1720334410036,0.11932659,3042.7,3042.6,2.3067]
[1720334410350,0.11932659,3042.8,3042.6,2.3067]
[1720334410652,0.11932838,3042.7,3042.6,2.3067]
[1720334410953,0.11932838,3042.8,3042.6,2.3067]
[1720334411345,0.11932838,3042.8,3042.7,0.966]
[1720334412356,0.11930811,3042.8,3042.7,0.966]
[1720334415052,0.11930811,3042.8,3042.7,3.3052]
[1720334415221,0.11930811,3042.8,3042.7,5.60578]
[1720334415424,1.7262239,3043.0,3042.9,2.30043]
[1720334415622,1.83905685,3043.2,3043.0,4.63954]
[1720334415816,0.1129741,3043.2,3043.0,4.63954]
[1720334416023,0.1129741,3043.2,3043.1,0.966]
[1720334417143,0.1129741,3043.2,3043.1,5.67119916]
[1720334418119,0.1129741,3043.2,3043.1,7.90576]
[1720334419167,0.1129741,3043.2,3043.1,5.60548]
[1720334419396,0.1129741,3043.2,3043.1,3.3052]
[1720334422606,1.25066203,3043.2,3043.1,3.3052]
[1720334423703,0.1129741,3043.2,3043.1,3.3052]
[1720334424062,0.1129741,3043.2,3042.6,2.30064]
[1720334424265,0.1129741,3043.2,3043.1,0.966]
[1720334424487,1.25069833,3043.2,3043.1,3.3052]
[1720334425126,0.1129741,3043.2,3043.1,3.3052]
[1720334425729,1.25065049,3043.2,3043.1,3.3052]
[1720334426027,0.1129741,3043.2,3043.1,3.3052]
[1720334427096,1.25062849,3043.2,3043.1,3.3052]
[1720334428097,0.1129741,3043.2,3043.1,3.3052]
[1720334433629,0.1129741,3043.2,3043.1,5.60548]
[1720334437836,0.1129741,3043.2,3043.1,8.67118943]
[1720334441021,0.1129741,3043.2,3043.1,10.97146943]
[1720334451116,0.1129741,3043.2,3043.1,13.27174943]
[1720334451892,1.72146452,3044.4,3043.8,2.2665]
[1720334452117,1.13739181,3044.3,3044.2,2.29944]
[1720334452319,2.3112,3044.8,3044.3,2.29934]
[1720334452487,1.13717705,3044.7,3044.5,0.966]
[1720334452685,2.29923,3044.5,3043.4,2.30005]
[1720334452889,3.44837705,3044.4,3043.7,0.966]
[1720334453212,2.3409,3043.9,3043.0,0.966]
[1720334453399,2.3409,3043.8,3043.0,0.966]
[1720334453606,1.13743379,3043.7,3043.0,0.966]
[1720334453806,3.47833379,3043.6,3043.0,0.966]
[1720334453999,1.13743379,3043.5,3043.0,0.966]
[1720334454321,2.3409,3043.4,3042.5,2.30073]
[1720334454622,1.13770156,3043.3,3043.0,0.966]
[1720334454799,1.13770156,3043.2,3043.0,0.966]
[1720334454999,1.13770156,3043.3,3043.0,0.966]
[1720334455407,1.13770156,3043.3,3043.2,0.32885001]
[1720334456627,1.13770156,3043.3,3043.0,0.966]
[1720334457790,4.64096,3043.4,3043.0,0.966]
[1720334457989,1.13773575,3043.3,3043.0,0.966]
[1720334458220,1.13773575,3043.2,3043.0,0.966]
[1720334458430,1.13773772,3043.1,3042.9,0.966]
[1720334458583,5.13983934,3043.4,3042.9,0.966]
[1720334458786,1.13776374,3043.3,3042.9,0.966]
[1720334459029,1.13776374,3043.2,3042.9,0.966]
[1720334459192,1.13776374,3043.1,3042.9,0.966]
[1720334459392,0.80004678,3043.3,3042.9,0.966]
[1720334459592,1.13775165,3043.2,3042.9,0.966]
[1720334459902,0.80004678,3043.3,3042.9,0.966]
[1720334461194,0.80004678,3043.3,3042.7,3.0]
[1720334461398,2.3409,3043.4,3042.9,0.966]
[1720334461602,1.13776438,3043.2,3043.1,0.966]
[1720334461925,2.3409,3043.4,3043.1,0.966]
[1720334462324,3.01211393,3043.4,3043.1,0.966]
[1720334462490,1.2568611,3043.3,3043.1,0.966]
[1720334462691,1.13771136,3043.2,3043.1,0.966]
[1720334463436,1.13771136,3043.2,3043.1,3.26628]
[1720334463637,4.42269447,3043.8,3043.1,3.26628]
[1720334463638,4.07797872,3043.8,3043.1,3.26628]
[1720334463802,1.89446118,3043.7,3043.5,0.966]
[1720334463997,1.1376251,3043.6,3043.5,0.966]
[1720334465245,1.25669235,3043.6,3043.5,0.966]
[1720334465610,1.1376251,3043.6,3043.5,0.966]
[1720334465821,1.13758563,3043.6,3043.5,0.966]
[1720334466531,1.72332521,3044.1,3043.4,2.29999]
[1720334466846,4.65386,3044.2,3043.4,2.29999]
[1720334466847,3.61754714,3044.0,3043.5,0.966]
[1720334467047,1.25650341,3043.9,3043.5,0.966]
[1720334467215,1.25650341,3043.8,3043.5,0.966]
[1720334467531,1.13752644,3043.7,3043.4,2.29999]
[1720334467697,1.13752644,3043.9,3043.6,0.966]
[1720334467892,1.13752644,3043.8,3043.6,0.966]
[1720334468093,1.13752644,3043.7,3043.6,0.966]
[1720334468311,1.72332521,3044.1,3043.6,0.966]
[1720334468520,1.25638648,3044.0,3043.6,3.2659]
[1720334468842,1.25638648,3043.9,3043.8,0.966]
[1720334469012,0.11893916,3043.9,3043.8,0.966]
[1720334469220,1.13748643,3044.0,3043.8,0.966]
[1720334469525,1.1374157,3043.9,3043.8,0.966]
[1720334471929,1.25635077,3043.9,3043.8,0.966]
[1720334472299,1.25641666,3043.9,3043.6,0.966]
[1720334472536,1.13748184,3043.8,3043.6,0.966]
[1720334472800,1.13748184,3043.7,3043.6,0.966]
[1720334473022,1.13748184,3043.9,3043.6,0.966]
[1720334473417,1.13748184,3043.9,3043.3,5.12072067]
[1720334473418,0.118992,3043.8,3043.3,0.32859067]
[1720334473612,1.13748184,3043.7,3043.4,0.966]
[1720334473936,1.13748184,3043.7,3043.3,0.32859067]
[1720334474142,1.13748184,3043.7,3043.3,1.29459067]
[1720334474314,0.11905121,3043.6,3043.3,1.29459067]
[1720334474516,1.13748184,3043.5,3043.3,1.29459067]
[1720334475046,4.02299294,3043.8,3043.3,1.29459067]
[1720334475350,1.25664763,3043.7,3043.3,1.29459067]
[1720334475559,4.02299294,3043.8,3043.3,1.29459067]
[1720334475722,1.25665298,3043.7,3043.3,1.29459067]
[1720334476044,1.25665298,3043.6,3043.3,1.29459067]
[1720334476246,1.25668537,3043.5,3043.3,1.29459067]
[1720334476550,1.13760334,3043.4,3043.3,1.29459067]
[1720334477004,1.13760334,3043.6,3043.3,1.29459067]
[1720334477534,1.13760334,3043.5,3043.3,1.29459067]
[1720334477742,1.13760334,3043.4,3043.3,1.29459067]
[1720334477928,1.13760334,3043.7,3043.3,1.29459067]
[1720334478125,0.11905676,3043.6,3043.3,1.29459067]
[1720334478345,1.13760334,3043.5,3043.3,1.29459067]
[1720334478855,1.13762413,3043.4,3043.3,1.29459067]
[1720334479216,1.13765093,3043.4,3043.3,1.29459067]
[1720334480344,1.1376163,3043.4,3043.3,1.29459067]
[1720334482271,1.13761823,3043.4,3043.3,1.29459067]
[1720334483133,1.13761823,3043.4,3043.3,3.73629067]
[1720334483333,1.72367134,3044.0,3043.3,1.29459067]
[1720334483576,2.2999,3043.7,3043.3,2.77029067]
[1720334483777,1.25652963,3043.6,3043.5,0.966]
[1720334484132,1.25652963,3043.6,3043.3,0.32859067]
[1720334484443,1.25652963,3043.5,3043.3,0.32859067]
[1720334484669,1.13753992,3043.4,3043.3,0.32859067]
[1720334485050,1.25667152,3043.4,3043.3,0.32859067]
[1720334485255,1.78470581,3043.4,3043.3,0.32859067]
[1720334485592,1.78486352,3043.4,3043.3,0.32859067]
[1720334486383,1.66572821,3043.4,3043.3,0.32859067]
[1720334486578,1.78486028,3043.4,3043.3,0.32859067]
[1720334487881,1.66572821,3043.4,3043.3,0.32859067]
[1720334488234,1.78485927,3043.4,3043.3,0.32859067]
[1720334488674,1.66572821,3043.4,3043.3,0.32859067]
[1720334488852,1.13769033,3043.4,3043.3,0.32859067]
[1720334489053,2.3,3043.5,3043.3,0.32859067]
[1720334489250,1.25680697,3043.4,3043.3,0.32859067]
[1720334490241,1.25682828,3043.4,3043.3,1.29459067]
[1720334490586,1.25682181,3043.4,3043.3,1.29459067]
[1720334491783,2.29992,3043.6,3043.3,1.29459067]
[1720334491954,1.24518225,3043.5,3043.3,1.29459067]
[1720334492163,1.13767223,3043.4,3043.3,1.29459067]
[1720334494382,1.13767223,3043.4,3043.3,3.60359067]
[1720334494783,1.72349408,3043.9,3043.4,2.30002]
[1720334495019,4.3676529,3044.2,3043.4,2.30002]
[1720334495020,1.24501353,3043.8,3043.6,0.966]
[1720334495225,1.13753058,3043.7,3043.6,0.966]
[1720334495389,1.24502915,3043.7,3043.6,0.966]
[1720334496525,1.13753058,3043.7,3043.6,0.966]
[1720334497316,1.13753058,3043.7,3043.6,3.275]
[1720334498408,1.72428679,3044.0,3043.6,3.275]
[1720334498738,1.24497574,3043.9,3043.6,3.275]
[1720334498897,1.24498575,3043.8,3043.6,4.6089]
[1720334499097,1.72430038,3044.1,3043.7,0.966]
[1720334499321,2.96925584,3044.0,3043.7,0.966]
[1720334499524,1.24495546,3043.9,3043.7,0.966]
[1720334499736,1.24495546,3043.8,3043.7,0.966]
[1720334501631,0.10749069,3043.8,3043.7,0.966]
[1720334501830,1.24495832,3043.8,3043.7,0.966]
[1720334502335,1.24495832,3043.8,3043.4,2.62864067]
[1720334502497,1.24495832,3043.7,3043.5,0.966]
[1720334502843,1.13746763,3043.6,3043.4,0.32859067]
[1720334503139,1.72440543,3043.9,3043.5,0.966]
[1720334503344,1.24505727,3043.8,3043.5,0.966]
[1720334503515,1.24505727,3043.7,3043.5,0.966]
[1720334503711,1.13755804,3043.6,3043.5,0.966]
[1720334504936,2.29961,3044.0,3043.5,0.966]
[1720334505150,1.13754851,3043.6,3043.5,0.966]
[1720334505300,1.24504684,3043.6,3043.5,0.966]
[1720334505503,1.13754851,3043.6,3043.5,0.966]
[1720334505737,1.24504591,3043.6,3043.5,0.966]
[1720334505947,1.24504608,3043.6,3043.5,0.966]
[1720334506508,1.13754851,3043.6,3043.5,0.966]
[1720334506706,1.24504825,3043.6,3043.5,0.966]
[1720334507550,1.13754851,3043.6,3043.5,0.966]
[1720334507715,1.24504569,3043.6,3043.5,0.966]
[1720334508416,1.24509417,3043.6,3043.5,0.966]
[1720334508610,1.13759284,3043.6,3043.5,0.966]
[1720334508832,1.24509536,3043.6,3043.5,0.966]
[1720334509910,1.24507753,3043.6,3043.5,0.966]
[1720334510748,1.24507753,3043.6,3043.4,0.32859067]
[1720334510949,1.24507753,3043.5,3043.4,0.32859067]
[1720334511511,1.24516028,3043.5,3043.4,0.32859067]
[1720334514067,1.24516028,3043.5,3043.4,1.29459067]
[1720334514278,1.13765216,3043.5,3043.4,1.29459067]
[1720334514869,1.13759032,3043.5,3043.4,1.29459067]
[1720334516974,1.13764498,3043.5,3043.4,1.29459067]
[1720334517761,1.13764498,3043.5,3043.4,0.32859067]
[1720334517950,1.13764498,3043.5,3043.4,1.29459067]
[1720334518147,1.72549174,3043.7,3043.4,1.29459067]
[1720334518347,1.13760538,3043.6,3043.4,0.32859067]
[1720334518563,1.72555026,3043.7,3043.5,0.966]
[1720334518869,1.1375956,3043.6,3043.5,0.966]
[1720334519936,1.13760505,3043.6,3043.5,0.966]
[1720334520989,2.86323792,3043.6,3043.5,0.966]
[1720334521666,3.3048917,3043.6,3043.5,0.966]
[1720334521841,2.86323792,3043.6,3043.5,0.966]
[1720334522461,3.3048718,3043.6,3043.4,0.32859067]
[1720334522637,1.13761561,3043.5,3043.4,0.32859067]
[1720334522839,2.29984,3043.7,3043.4,0.32859067]
[1720334523039,3.30491626,3043.6,3043.4,0.32859067]
[1720334523239,1.13763356,3043.5,3043.4,0.32859067]
[1720334523984,2.29984,3043.7,3043.4,0.32859067]
[1720334524140,2.86327677,3043.6,3043.4,0.32859067]
[1720334524340,1.13763105,3043.5,3043.4,0.32859067]
[1720334525766,3.43761105,3043.5,3043.4,0.32859067]
[1720334526079,5.16325677,3043.5,3043.4,0.32859067]
[1720334527246,5.16331743,3043.5,3043.4,0.32859067]
[1720334527777,5.1633183,3043.5,3043.4,0.32859067]
[1720334528347,3.43765772,3043.5,3043.4,0.32859067]
[1720334528851,3.4376341,3043.5,3043.4,0.32859067]
[1720334530494,2.29998,3043.5,3043.4,0.32859067]
[1720334530693,3.437634,3043.5,3043.4,0.32859067]
[1720334531101,5.16325478,3043.5,3043.4,0.32859067]
[1720334531394,9.19617043,3043.5,3043.4,0.32859067]
[1720334531555,7.98012864,3043.5,3043.4,0.32859067]
[1720334532048,10.0511748,3043.5,3043.4,0.32859067]
[1720334532507,7.7511948,3043.5,3043.4,0.32859067]
[1720334532796,3.87938095,3043.5,3043.4,0.32859067]
[1720334533651,2.74172695,3043.5,3043.4,0.32859067]
[1720334533886,3.8795059,3043.5,3043.4,0.32859067]
[1720334534707,7.00459711,3043.5,3043.4,0.32859067]
[1720334535109,4.93400198,3043.5,3043.4,0.32859067]
[1720334535268,7.00459711,3043.5,3043.4,0.32859067]
[1720334535611,7.00459394,3043.5,3043.4,0.32859067]
[1720334535769,3.8795059,3043.5,3043.4,0.32859067]
[1720334536866,2.74172695,3043.5,3043.4,0.32859067]
[1720334537063,3.87950211,3043.5,3043.4,0.32859067]
[1720334537320,2.74172695,3043.5,3043.4,0.32859067]
[1720334537499,3.87952553,3043.5,3043.4,0.32859067]
[1720334537694,4.70447095,3043.5,3043.4,0.32859067]
[1720334537878,7.82895835,3043.5,3043.4,0.32859067]
[1720334538416,4.70447095,3043.5,3043.4,0.32859067]
[1720334538571,8.05896313,3043.5,3043.4,0.32859067]
[1720334538771,10.12897176,3043.5,3043.4,0.32859067]
[1720334539473,10.67897176,3043.5,3043.4,0.32859067]
[1720334539674,13.30284313,3043.5,3043.4,0.32859067]
[1720334539886,13.64529359,3043.5,3043.4,0.32859067]
[1720334540127,11.11053237,3043.5,3043.4,0.32859067]
[1720334540313,15.71784355,3043.5,3043.4,0.32859067]
[1720334540627,13.6456208,3043.5,3043.4,0.32859067]
[1720334540990,16.6456208,3043.5,3043.4,0.32859067]
[1720334541191,17.61172541,3043.5,3043.4,0.32859067]
[1720334542319,20.02461071,3043.5,3043.4,0.32859067]
[1720334543426,15.41905927,3043.5,3043.4,0.32859067]
[1720334543722,20.02419439,3043.5,3043.4,0.32859067]
[1720334544624,16.66429439,3043.5,3043.4,0.32859067]
[1720334544827,13.67676426,3043.5,3043.4,0.32859067]
[1720334544997,13.90942243,3043.5,3043.4,0.32859067]
[1720334546090,15.97648753,3043.5,3043.4,0.32859067]
[1720334546328,13.90942243,3043.5,3043.4,0.32859067]
[1720334546705,12.77140004,3043.5,3043.4,0.32859067]
[1720334546905,13.9092349,3043.5,3043.4,0.32859067]
[1720334547498,13.90923365,3043.5,3043.4,0.32859067]
[1720334548704,13.90924359,3043.5,3043.4,0.32859067]
[1720334549441,15.97606201,3043.5,3043.4,0.32859067]
[1720334550242,12.85457563,3043.5,3043.4,0.32859067]
[1720334550452,3.64641328,3043.5,3043.4,2.61449067]
[1720334550601,1.13792276,3043.5,3043.4,2.61449067]
[1720334552116,1.13770017,3043.5,3043.4,2.61449067]
[1720334553547,1.13770135,3043.5,3043.4,2.61449067]
[1720334556672,5.15991704,3043.5,3043.4,2.61449067]
[1720334556870,3.43772418,3043.5,3043.4,2.61449067]
[1720334557073,5.16035563,3043.5,3043.4,2.61449067]
[1720334557283,2.29998,3043.5,3043.4,2.61449067]
[1720334557452,5.16040288,3043.5,3043.4,2.61449067]
[1720334558474,5.16050343,3043.5,3043.4,2.61449067]
[1720334561173,3.43775122,3043.5,3043.4,2.61449067]
[1720334561478,5.16050343,3043.5,3043.4,2.61449067]
[1720334562181,3.43775122,3043.5,3043.4,2.61449067]
[1720334562854,5.73773122,3043.5,3043.4,2.61449067]
[1720334563234,7.46048343,3043.5,3043.4,2.61449067]
[1720334563441,4.59996,3043.5,3043.4,2.61449067]
[1720334563642,7.46075606,3043.5,3043.4,2.61449067]
[1720334565199,7.46075606,3043.5,3043.4,0.32859067]
[1720334565479,6.53598554,3043.5,3043.4,0.32859067]
[1720334566754,5.3982552,3043.5,3043.4,0.32859067]
[1720334567081,8.60435533,3043.5,3043.4,0.32859067]
[1720334567376,9.65889389,3043.5,3043.4,0.32859067]
[1720334568179,8.14063391,3043.5,3043.4,0.32859067]
[1720334570383,7.00283216,3043.5,3043.4,0.32859067]
[1720334570551,8.14070285,3043.5,3043.4,0.32859067]
[1720334571551,10.20942484,3043.5,3043.4,0.32859067]
[1720334571786,9.85269465,3043.5,3043.4,0.32859067]
[1720334573091,9.30269465,3043.5,3043.4,0.32859067]
[1720334573253,7.11028866,3043.5,3043.4,0.32859067]
[1720334573441,2.74150245,3043.5,3043.4,0.32859067]
[1720334573646,5.60322539,3043.5,3043.4,0.32859067]
[1720334573945,3.87923956,3043.5,3043.4,0.32859067]
[1720334575939,3.43770615,3043.5,3043.4,0.32859067]
[1720334576196,3.87929914,3043.5,3043.4,0.32859067]
[1720334576554,2.74157299,3043.5,3043.4,0.32859067]
[1720334576885,3.8792946,3043.5,3043.4,0.32859067]
[1720334577079,3.87929698,3043.5,3043.4,0.32859067]
[1720334579607,6.17927698,3043.5,3043.4,0.32859067]
[1720334579909,5.04155299,3043.5,3043.4,0.32859067]
[1720334580063,6.17929923,3043.5,3043.4,0.32859067]
[1720334582435,5.04155299,3043.5,3043.4,0.32859067]
[1720334582614,9.30314336,3043.5,3043.4,0.32859067]
[1720334582815,3.43774477,3043.5,3043.4,2.77199067]
[1720334583215,5.1619776,3043.5,3043.4,2.77199067]
[1720334585331,2.8619976,3043.5,3043.4,2.77199067]
[1720334585482,1.13768562,3043.5,3043.4,3.73799067]
[1720334585676,1.13768562,3043.5,3043.4,2.77199067]
[1720334585918,1.13762889,3043.5,3043.4,3.73799067]
[1720334586230,2.29994,3043.6,3043.4,3.73799067]
[1720334586429,1.13764993,3043.5,3043.4,3.73799067]
[1720334589162,4.02402202,3043.6,3043.4,2.77199067]
[1720334589461,1.13769185,3043.5,3043.4,2.77199067]
[1720334592154,2.86177387,3043.5,3043.4,2.77199067]
[1720334592541,2.29994,3043.6,3043.4,2.77199067]
[1720334592854,2.86245031,3043.5,3043.4,2.77199067]
[1720334595159,5.16243031,3043.5,3043.4,2.77199067]
[1720334595667,2.29998,3043.5,3043.4,2.77199067]
[1720334595824,5.16299966,3043.5,3043.4,2.77199067]
[1720334596228,5.16294108,3043.5,3043.4,2.77199067]
[1720334599030,5.16318072,3043.5,3043.4,2.77199067]
[1720334600471,3.43767974,3043.5,3043.4,2.77199067]
[1720334600677,3.60492102,3043.5,3043.4,0.32859067]
[1720334601973,3.43767974,3043.5,3043.4,0.32859067]
[1720334602148,5.16312983,3043.5,3043.4,0.32859067]
[1720334602347,3.43769233,3043.5,3043.4,0.32859067]
[1720334602834,5.16315742,3043.5,3043.4,0.32859067]
[1720334603432,3.43769233,3043.5,3043.4,0.32859067]
[1720334603640,5.1631311,3043.5,3043.4,0.32859067]
[1720334605480,3.43769233,3043.5,3043.4,0.32859067]
[1720334605637,5.16313322,3043.5,3043.4,0.32859067]
[1720334605834,3.43768802,3043.5,3043.4,0.32859067]
[1720334606040,3.60497868,3043.5,3043.4,0.32859067]
[1720334607039,2.46722143,3043.5,3043.4,0.32859067]
[1720334607239,3.60495592,3043.5,3043.4,0.32859067]
[1720334607541,9.82748497,3043.5,3043.4,0.32859067]
[1720334607883,10.18859203,3043.5,3043.4,0.32859067]
[1720334608679,10.73859203,3043.5,3043.4,0.32859067]
[1720334608984,10.738858,3043.5,3043.4,0.32859067]
[1720334611386,8.307158,3043.5,3043.4,0.32859067]
[1720334611593,10.37754874,3043.5,3043.4,0.32859067]
[1720334612152,9.23963283,3043.5,3043.4,0.32859067]
[1720334612356,10.37744696,3043.5,3043.4,0.32859067]
[1720334612659,8.30705872,3043.5,3043.4,0.32859067]
[1720334612869,10.37750599,3043.5,3043.4,0.32859067]
[1720334613057,8.30705872,3043.5,3043.4,0.32859067]
[1720334613259,10.37746215,3043.5,3043.4,0.32859067]
[1720334613673,8.30705872,3043.5,3043.4,0.32859067]
[1720334613875,10.37752255,3043.5,3043.4,0.32859067]
[1720334614072,10.37751934,3043.5,3043.4,0.32859067]
[1720334614284,10.37763668,3043.5,3043.4,0.32859067]
[1720334614484,10.37761581,3043.5,3043.4,0.32859067]
[1720334615309,6.11473932,3043.5,3043.4,0.32859067]
[1720334615473,10.37779538,3043.5,3043.4,0.32859067]
[1720334615875,10.37769174,3043.5,3043.4,0.32859067]
[1720334616882,6.11473932,3043.5,3043.4,0.32859067]
[1720334617056,10.37784588,3043.5,3043.4,0.32859067]
[1720334617661,8.30701855,3043.5,3043.4,0.32859067]
[1720334617965,10.37804673,3043.5,3043.4,0.32859067]
[1720334618363,8.30701855,3043.5,3043.4,0.32859067]
[1720334618771,10.37814572,3043.5,3043.4,0.32859067]
[1720334619173,10.37814572,3043.5,3043.4,0.27859067]
[1720334619592,8.30704583,3043.5,3043.4,0.27859067]
[1720334622020,6.11473932,3043.5,3043.4,0.27859067]
[1720334622182,8.30716741,3043.5,3043.4,0.27859067]
[1720334623981,2.30029,3043.1,3042.9,2.316]
[1720334624182,1.13786223,3043.0,3042.9,2.316]
[1720334625320,2.30029,3043.1,3042.9,2.316]
[1720334625616,1.13784832,3043.0,3042.9,2.316]
[1720334625776,1.13786294,3043.0,3042.9,2.316]
[1720334627121,2.86338753,3043.0,3042.9,2.316]
[1720334627301,1.13786353,3043.0,3042.9,2.316]
[1720334628594,1.72534071,3043.0,3042.9,2.316]
[1720334628794,2.8632106,3043.0,3042.9,2.316]
[1720334630429,1.13786989,3043.0,3042.9,2.316]
[1720334631932,2.30029,3043.1,3042.9,2.316]
[1720334632110,1.13786108,3043.0,3042.9,2.316]
[1720334635121,2.30022,3043.2,3042.9,2.316]
[1720334635331,1.1378043,3043.1,3042.9,2.316]
[1720334635534,4.02546592,3043.2,3042.9,2.316]
[1720334635535,2.30022,3043.2,3042.9,2.316]
[1720334635740,1.13780404,3043.1,3042.9,2.316]
[1720334635924,1.13780404,3043.0,3042.9,2.316]
[1720334636121,1.13780404,3043.0,3042.9,3.282]
[1720334636801,1.13779939,3043.0,3042.9,3.282]
[1720334637337,1.72529078,3043.2,3042.9,0.966]
[1720334637523,1.13776316,3043.1,3043.0,2.3755]
[1720334637713,1.13776316,3043.1,3043.0,3.3415]
[1720334637909,1.13776316,3043.1,3043.0,2.3755]
[1720334638109,2.86305394,3043.1,3043.0,2.3755]
[1720334638513,2.86336358,3043.1,3043.0,2.3755]
[1720334638935,1.13783843,3043.1,3043.0,2.3755]
[1720334639232,2.86336358,3043.1,3043.0,2.3755]
[1720334639635,1.30511184,3043.1,3043.0,2.3755]
[1720334639846,7.29832874,3043.1,3042.8,2.3755]
[1720334640034,1.72574301,3042.9,3042.8,2.3755]
[1720334640348,2.86358144,3042.9,3042.8,2.3755]
[1720334640700,2.86358144,3042.9,3042.6,2.3755]
[1720334640901,2.86358144,3042.8,3042.6,3.3415]
[1720334641102,1.13794937,3042.7,3042.6,3.3415]
[1720334643520,1.72581676,3043.0,3042.7,2.3746]
[1720334643727,1.13785181,3042.9,3042.8,0.966]
[1720334644305,1.13785078,3042.9,3042.8,0.966]
[1720334644747,1.13785074,3042.9,3042.8,0.966]
[1720334644924,2.86378111,3042.9,3042.8,0.966]
[1720334645309,1.13785074,3042.9,3042.8,0.966]
[1720334646319,1.13785074,3042.9,3042.8,3.3406]
[1720334646730,1.13785074,3042.9,3042.8,5.64111]
[1720334647349,2.29988,3043.7,3042.8,3.26651]
[1720334647552,1.72600725,3043.3,3042.9,2.3746]
[1720334647847,1.13771334,3043.2,3043.1,0.966]
[1720334649658,2.86372059,3043.2,3042.9,2.3746]
[1720334649860,2.86372059,3043.1,3042.9,2.3746]
[1720334650104,1.13771334,3043.0,3042.9,2.3746]
[1720334650626,2.29999,3043.5,3042.9,2.3746]
[1720334650826,1.72646804,3043.1,3042.9,2.3746]
[1720334651125,1.13780112,3043.0,3042.9,2.3746]
[1720334652598,2.86426916,3043.0,3042.9,2.3746]
[1720334653892,1.13780112,3043.0,3042.9,2.3746]
[1720334654182,2.86427407,3043.0,3042.9,2.3746]
[1720334654388,2.30007,3043.4,3042.9,2.3746]
[1720334654555,1.72701006,3043.0,3042.9,2.3746]
[1720334654756,2.86483336,3043.0,3042.9,2.3746]
[1720334655548,2.86482839,3043.0,3042.9,2.3746]
[1720334657259,2.86484369,3043.0,3042.9,2.3746]
[1720334660558,2.86486273,3043.0,3042.9,2.3746]
[1720334662709,2.86486446,3043.0,3042.9,2.3746]
[1720334663372,1.13782984,3043.0,3042.9,4.67503]
[1720334663564,3.16011177,3043.0,3042.9,4.67503]
[1720334663762,1.72664252,3043.5,3043.0,2.4564]
[1720334663967,2.86430775,3043.4,3043.0,2.4564]
[1720334664162,2.0721054,3043.6,3043.3,2.4564]
[1720334664369,1.57490671,3043.5,3043.4,0.966]
[1720334664569,2.86420034,3043.5,3043.4,0.966]
[1720334664803,1.13771017,3043.5,3043.4,0.966]
[1720334665371,1.13771017,3043.5,3043.3,2.4564]
[1720334665580,1.13771017,3043.4,3042.6,2.4564]
[1720334665780,3.16050717,3042.7,3042.6,3.4224]
[1720334666010,1.13771017,3042.7,3042.6,3.4224]
[1720334666168,1.72643845,3043.1,3042.6,3.4224]
[1720334666169,1.13771017,3043.0,3042.6,3.4224]
[1720334666771,1.13771017,3042.9,3042.6,3.4224]
[1720334666987,1.72652207,3043.1,3042.6,3.4224]
[1720334667299,1.13783898,3043.0,3042.6,3.4224]
[1720334667503,1.13783898,3042.9,3042.6,3.4224]
[1720334667709,1.13783898,3042.8,3042.6,2.4564]
[1720334667874,1.13783898,3043.0,3042.7,0.966]
[1720334668071,1.13783898,3042.9,3042.7,0.966]
[1720334668310,1.13783898,3042.8,3042.7,0.966]
[1720334670309,1.13782736,3042.8,3042.7,0.966]
[1720334671788,1.13782736,3042.8,3042.7,8.02356]
[1720334671993,3.16044001,3043.2,3042.7,6.26658]
[1720334672189,3.16044001,3043.3,3043.2,4.75661]
[1720334672430,1.1375395,3043.7,3043.4,2.30005]
[1720334672584,1.1375395,3043.6,3043.4,2.30005]
[1720334672781,1.72650311,3043.8,3043.6,0.966]
[1720334673016,1.13758395,3043.7,3043.6,0.966]
[1720334673531,2.17,3044.1,3043.6,0.966]
[1720334673698,1.72541561,3043.9,3043.6,0.966]
[1720334673887,2.17,3044.1,3043.6,0.966]
[1720334674083,1.72485764,3043.9,3043.6,0.966]
[1720334674417,1.13753825,3043.8,3043.6,0.966]
[1720334675182,1.1375207,3043.7,3043.6,0.966]
[1720334676880,1.13753034,3043.7,3043.6,0.966]
[1720334677584,4.29729429,3043.7,3043.6,3.4062]
[1720334677914,4.29727618,3043.7,3043.6,3.4062]
[1720334678116,1.13753034,3043.7,3043.6,3.4062]
[1720334678510,3.15975005,3043.7,3043.6,3.4062]
[1720334678719,4.29728039,3043.7,3043.6,3.4062]
[1720334680148,2.17,3044.1,3043.6,3.4062]
[1720334680341,3.15974247,3043.7,3043.6,3.4062]
[1720334680532,4.29724976,3043.7,3043.6,3.4062]
[1720334681586,1.13750729,3043.7,3043.6,3.4062]
[1720334682990,3.15974247,3043.8,3043.6,5.7061]
[1720334683329,3.15974247,3043.9,3043.6,5.7061]
[1720334683533,4.02122711,3044.4,3043.9,0.966]
[1720334683687,3.83904487,3044.3,3043.9,0.966]
[1720334683891,1.13745888,3044.2,3043.9,0.966]
[1720334684095,1.13745888,3044.1,3043.9,0.966]
[1720334684403,1.13745888,3044.0,3043.9,0.966]
[1720334685143,1.13744917,3044.0,3043.9,0.966]
[1720334685816,1.13744917,3044.0,3043.7,0.966]
[1720334686020,4.4232683,3044.3,3043.7,0.966]
[1720334686021,4.29715202,3043.9,3043.7,0.966]
[1720334686320,4.29715202,3043.8,3043.7,0.966]
[1720334686534,3.15970285,3043.8,3043.7,0.966]
[1720334686721,0.44232683,3044.2,3043.7,0.966]
[1720334686922,3.15977748,3043.8,3043.7,0.966]
[1720334687125,4.29729737,3043.8,3043.7,0.966]
[1720334689510,4.29729671,3043.8,3043.7,0.966]
[1720334690183,1.13749534,3043.8,3043.7,0.966]
[1720334690364,3.15970928,3043.8,3043.7,0.966]
[1720334690848,1.13749534,3043.8,3043.7,0.966]
[1720334691057,1.13749534,3044.2,3043.7,0.966]
[1720334691351,3.15970661,3043.8,3043.7,0.966]
[1720334691548,4.29720263,3043.8,3043.7,0.966]
[1720334692248,1.13749534,3043.8,3043.7,0.966]
[1720334692415,4.29720263,3043.8,3043.7,0.966]
[1720334693115,1.13749534,3043.8,3043.7,0.966]
[1720334693342,2.29938,3044.3,3043.7,0.966]
[1720334693545,3.15957327,3043.9,3043.6,4.7401]
[1720334693723,2.29938,3044.3,3043.6,4.7401]
[1720334693942,3.15957338,3043.9,3043.8,0.966]